bitfinex/quotes_ETHUSD_20251125
["timestamp","ask_amount","ask_price","bid_price","bid_amount"]
[1764060811058,0.91922885,2884.0,2883.8,3.86883897]
[1764060811282,0.73538308,2883.9,2883.8,3.76883897]
[1764060811460,1.22563,2884.2,2883.8,16.22607497]
[1764060811663,7.501e-05,2884.2,2884.1,0.2958]
[1764060811861,4.22144115,2885.5,2884.2,5.960927]
[1764060811862,0.405504,2885.3,2884.2,5.960927]
[1764060812079,0.405504,2885.3,2885.2,0.1]
[1764060812279,0.405504,2885.5,2884.8,0.33]
[1764060812478,0.405504,2885.1,2885.0,0.1]
[1764060812704,0.405504,2885.1,2885.0,0.33]
[1764060813000,0.405504,2885.2,2885.0,0.33]
[1764060813171,0.405504,2885.2,2884.1,0.1958]
[1764060813172,0.405504,2885.2,2884.4,0.03466925]
[1764060813367,0.326,2885.8,2884.9,0.1]
[1764060813368,0.405504,2885.0,2884.9,0.1]
[1764060813773,2.83555236,2885.2,2884.9,0.33]
[1764060813999,0.405504,2885.2,2884.9,0.33]
[1764060814305,2.43004836,2885.2,2884.4,0.4698]
[1764060814473,0.405504,2885.1,2885.0,0.1]
[1764060814875,5.42982853,2885.6,2885.1,0.1]
[1764060815075,1.04162507,2886.4,2885.1,0.1]
[1764060815076,2.43004836,2885.8,2885.1,0.1958]
[1764060815403,2.43004836,2886.5,2886.3,0.1958]
[1764060815606,2.43004836,2886.6,2886.5,0.1]
[1764060815826,2.43004836,2887.1,2886.4,0.6998]
[1764060816107,0.1898,2887.8,2887.4,0.1]
[1764060816402,0.189,2887.8,2887.5,0.23]
[1764060816582,0.189,2887.8,2887.7,0.1]
[1764060817106,0.1898,2888.1,2887.7,0.1]
[1764060817407,0.64,2888.4,2888.1,0.1]
[1764060817571,0.1898,2888.4,2888.1,0.33]
[1764060817771,0.1898,2888.4,2888.2,0.23]
[1764060817971,0.1898,2888.4,2887.9,0.1]
[1764060817972,0.67242069,2888.4,2887.9,0.1]
[1764060818198,0.67242069,2888.4,2888.0,0.23]
[1764060818403,0.67242069,2888.4,2887.9,0.1]
[1764060818404,0.4502,2888.3,2888.1,0.23]
[1764060819170,0.1898,2888.4,2888.1,0.23]
[1764060819581,0.64,2888.4,2888.1,0.23]
[1764060820384,0.405504,2888.3,2888.1,0.23]
[1764060821023,0.405504,2888.3,2888.2,0.1]
[1764060821728,6.46107447,2889.1,2888.2,3.46235606]
[1764060821729,0.1898,2888.9,2888.2,3.46235606]
[1764060822015,0.1898,2888.9,2888.1,0.4258]
[1764060822016,0.1898,2888.9,2888.5,0.1]
[1764060822218,0.91539411,2888.9,2888.5,0.1]
[1764060822390,0.405504,2888.7,2888.6,0.229]
[1764060822821,0.405504,2888.8,2888.6,0.229]
[1764060823122,1.13109811,2888.8,2888.6,0.229]
[1764060823422,0.72559411,2888.7,2888.2,0.1]
[1764060823622,4.31736519,2888.8,2888.4,0.1]
[1764060823623,0.405504,2888.5,2888.4,0.1]
[1764060823793,1.13038469,2888.5,2888.4,0.1]
[1764060825620,0.72488069,2888.5,2888.4,0.1]
[1764060825990,0.72488069,2888.5,2888.4,0.329]
[1764060826598,1.13038469,2888.5,2888.4,0.1]
[1764060826805,1.13038469,2888.5,2888.4,0.329]
[1764060827137,0.405504,2888.5,2888.4,0.329]
[1764060827344,1.13132748,2888.5,2888.4,0.1]
[1764060827517,1.13132748,2888.5,2888.4,0.329]
[1764060827724,1.13129926,2888.5,2888.4,0.329]
[1764060827958,0.405504,2888.5,2888.4,4.72672435]
[1764060828120,0.405504,2888.5,2888.4,1.2646]
[1764060828457,0.72559411,2889.3,2889.1,0.1]
[1764060828634,1.21562042,2889.2,2889.0,0.1]
[1764060828823,0.4894,2889.2,2889.1,0.229]
[1764060829151,1.62116102,2889.2,2889.1,0.229]
[1764060829666,1.62116102,2889.2,2888.2,3.46227608]
[1764060829667,5.90034154,2889.2,2888.2,3.46227608]
[1764060829825,1.13176102,2889.1,2888.4,0.1]
[1764060830140,1.13176102,2889.1,2888.3,0.229]
[1764060830141,0.72625702,2889.0,2888.8,0.1]
[1764060830329,0.72625702,2888.9,2888.8,0.1]
[1764060830522,0.86915702,2888.9,2888.8,0.1]
[1764060830729,0.405504,2888.8,2888.6,0.1]
[1764060831052,0.72711981,2888.7,2888.6,0.1]
[1764060831242,0.72711981,2888.7,2888.6,0.329]
[1764060831449,1.13109811,2888.6,2887.9,0.001]
[1764060831622,0.405504,2888.4,2888.0,0.229]
[1764060831823,1.18999411,2888.6,2888.1,0.1]
[1764060831824,0.405504,2888.2,2888.1,0.1]
[1764060832042,1.13262381,2888.2,2888.1,0.1]
[1764060832657,1.13262381,2888.2,2888.1,0.229]
[1764060832856,1.13262381,2888.2,2887.9,0.001]
[1764060832857,1.67802381,2888.2,2887.9,0.001]
[1764060833162,0.858504,2888.0,2887.9,0.001]
[1764060833323,1.58562381,2888.0,2887.9,0.001]
[1764060833658,5.86992179,2888.0,2887.9,0.001]
[1764060833826,2.40731792,2888.0,2887.9,0.001]
[1764060834022,5.86992179,2888.0,2887.9,0.001]
[1764060836241,2.40731792,2888.0,2887.9,0.001]
[1764060836466,5.86992179,2888.0,2887.9,0.001]
[1764060836990,5.77382179,2888.0,2887.9,0.001]
[1764060837134,5.86992179,2888.0,2887.9,0.001]
[1764060838757,5.77382179,2888.0,2887.9,0.001]
[1764060839263,0.72711981,2888.0,2887.9,0.001]
[1764060839467,1.13262381,2888.0,2887.9,0.101]
[1764060840081,0.72711981,2888.0,2887.9,0.001]
[1764060840236,1.13182381,2888.0,2887.9,0.229]
[1764060840433,1.13182381,2888.0,2887.9,0.001]
[1764060840771,1.13182381,2888.0,2887.9,0.229]
[1764060842034,5.07542768,2888.0,2887.9,0.001]
[1764060842244,1.13182381,2888.0,2887.9,0.101]
[1764060842476,4.59442768,2888.0,2887.9,0.101]
[1764060842877,1.13182381,2888.0,2887.9,0.101]
[1764060843349,1.13182381,2888.0,2887.9,0.566]
[1764060843674,0.72631981,2888.0,2887.9,4.40682377]
[1764060843843,0.72631981,2888.0,2887.9,4.50682377]
[1764060844244,0.72559411,2888.5,2888.4,0.1]
[1764060844588,5.2823759,2888.8,2888.4,0.1]
[1764060844589,0.002,2888.8,2888.6,0.1]
[1764060845245,0.002,2888.8,2888.7,0.1]
[1764060845446,0.32205164,2888.8,2888.7,0.1]
[1764060846082,0.32205164,2888.8,2888.7,0.328]
[1764060846757,0.002,2888.8,2888.7,0.328]
[1764060846981,0.72757748,2888.8,2888.7,0.328]
[1764060847348,0.32206546,2888.8,2888.7,0.328]
[1764060847677,0.407504,2888.8,2888.7,0.328]
[1764060847984,0.407504,2888.8,2888.7,0.793]
[1764060848358,0.002,2888.8,2888.7,0.793]
[1764060848559,0.407504,2888.8,2888.7,1.2711]
[1764060848857,3.86914897,2888.8,2888.2,0.4781]
[1764060849054,3.86914897,2888.8,2888.6,0.1]
[1764060849290,3.86914897,2888.8,2888.3,0.228]
[1764060849291,0.03242069,2888.7,2888.3,0.1]
[1764060849446,0.405504,2888.6,2888.4,0.228]
[1764060849649,0.405504,2888.3,2888.1,0.1]
[1764060849852,0.43792469,2888.3,2888.1,0.1]
[1764060850158,0.405504,2888.1,2887.9,0.001]
[1764060850362,0.405504,2888.1,2888.0,0.228]
[1764060850563,0.405504,2888.2,2888.0,0.228]
[1764060850981,0.03242069,2888.1,2888.0,0.228]
[1764060851380,0.43792469,2888.3,2888.0,0.1]
[1764060851564,0.31995763,2888.2,2888.0,0.328]
[1764060852080,0.43792469,2888.1,2887.9,0.001]
[1764060852288,0.43792469,2888.1,2887.9,0.229]
[1764060852651,0.950904,2888.0,2887.9,0.001]
[1764060852848,2.00789849,2888.0,2887.9,0.001]
[1764060853948,6.19609647,2888.0,2887.9,0.001]
[1764060854154,6.22851716,2888.0,2887.9,0.001]
[1764060854665,9.04427316,2888.0,2887.9,0.001]
[1764060854861,9.01185247,2888.0,2887.9,0.001]
[1764060855079,0.405504,2887.7,2887.6,0.001]
[1764060855381,7.67596441,2887.7,2887.6,0.001]
[1764060855569,8.13396441,2887.7,2887.6,0.001]
[1764060855971,19.37643901,2887.7,2887.6,0.001]
[1764060856156,1.13109811,2887.5,2886.5,0.1]
[1764060856359,0.405504,2887.3,2886.5,0.328]
[1764060856568,0.405504,2887.1,2886.5,0.328]
[1764060856768,0.405504,2886.9,2886.7,0.1]
[1764060856967,1.14258466,2886.9,2886.7,0.1]
[1764060857164,0.405504,2887.1,2886.7,0.1]
[1764060857569,1.59940203,2887.1,2886.6,0.1]
[1764060857756,0.405504,2886.9,2886.0,0.1886]
[1764060857956,0.405504,2886.7,2886.1,0.1]
[1764060858203,0.405504,2886.5,2886.1,0.328]
[1764060858442,0.405504,2886.5,2886.1,0.1]
[1764060858687,0.405504,2886.5,2885.8,0.228]
[1764060858885,0.405504,2886.5,2886.1,0.1]
[1764060859083,0.405504,2886.5,2885.6,3.65587885]
[1764060859084,0.863504,2886.5,2886.0,0.228]
[1764060859262,0.405504,2886.5,2886.2,0.1]
[1764060859596,0.1873,2887.3,2886.4,0.465]
[1764060859752,1.22714514,2887.5,2886.1,0.6685]
[1764060859753,1.0535082,2887.4,2887.0,0.1]
[1764060859952,0.72559411,2887.2,2887.0,0.1]
[1764060860661,0.72559411,2887.2,2886.8,0.1]
[1764060860864,0.72559411,2887.2,2886.7,0.1]
[1764060861072,1.19949411,2887.2,2886.7,0.1]
[1764060861279,0.405504,2887.1,2886.7,0.1]
[1764060861596,0.405504,2887.1,2886.2,3.46475054]
[1764060861597,8.676154,2886.6,2885.1,0.1958]
[1764060861771,0.405504,2886.2,2885.2,0.4972]
[1764060861971,0.405504,2886.0,2885.2,0.5972]
[1764060862172,0.405504,2886.0,2885.0,0.1966]
[1764060862173,1.13109811,2886.0,2885.0,0.1966]
[1764060862370,0.405504,2885.8,2885.0,0.6938]
[1764060862594,0.405504,2885.8,2885.2,0.1]
[1764060862892,0.405504,2885.8,2885.1,0.1]
[1764060863759,0.405504,2885.8,2885.0,0.1]
[1764060863760,0.879404,2885.8,2885.0,0.1]
[1764060863964,0.405504,2885.0,2884.4,0.1966]
[1764060864166,0.404704,2885.0,2884.3,0.1]
[1764060864570,0.404704,2885.0,2884.1,0.1966]
[1764060864791,0.878604,2885.0,2884.1,0.1966]
[1764060864992,0.878604,2885.0,2884.0,0.095]
[1764060865200,0.7019,2884.9,2883.6,0.4972]
[1764060865363,0.72559411,2884.7,2883.5,0.1966]
[1764060865567,2.000796,2884.8,2883.0,0.1966]
[1764060865568,3.411699,2884.4,2883.0,0.1966]
[1764060865766,0.228,2884.3,2883.1,0.095]
[1764060865998,0.72559411,2884.1,2883.4,0.095]
[1764060866198,0.405504,2884.0,2883.1,0.095]
[1764060866571,1.13109811,2884.4,2883.6,0.095]
[1764060867071,1.13109811,2884.4,2883.5,0.095]
[1764060867267,0.228,2884.7,2883.1,0.53188488]
[1764060867268,0.4739,2884.7,2883.1,0.53188488]
[1764060867575,0.69557207,2884.9,2884.0,0.095]
[1764060867576,1.19949411,2884.9,2884.0,0.095]
[1764060867788,0.4739,2884.8,2883.7,0.095]
[1764060868099,1.13109811,2884.5,2883.7,0.095]
[1764060868400,1.35909811,2884.5,2883.8,0.095]
[1764060868619,0.405504,2884.3,2883.0,0.1966]
[1764060868804,0.405504,2883.6,2883.0,0.1966]
[1764060869009,0.405504,2884.1,2883.1,0.095]
[1764060869326,0.405504,2883.6,2883.0,0.2916]
[1764060869479,0.228,2884.4,2883.0,0.2916]
[1764060869480,0.405504,2883.9,2883.0,0.7888]
[1764060869686,0.405504,2883.7,2883.0,4.25740857]
[1764060869995,0.405504,2883.7,2883.1,0.1966]
[1764060870194,0.1973,2884.1,2883.4,0.095]
[1764060870502,0.405504,2883.8,2883.3,0.095]
[1764060870712,0.405504,2883.9,2883.1,0.1966]
[1764060870905,0.99817938,2883.9,2883.3,0.095]
[1764060871485,0.4253,2884.4,2883.6,0.095]
[1764060871694,0.1973,2884.4,2883.3,0.4972]
[1764060871901,0.1973,2884.4,2883.7,0.095]
[1764060872281,0.1973,2884.4,2883.7,3.5627592]
[1764060872485,3.66423769,2884.4,2883.8,0.095]
[1764060872682,0.1973,2884.4,2883.8,0.095]
[1764060872907,0.1973,2884.8,2884.1,0.095]
[1764060873086,0.72559411,2884.6,2883.7,0.095]
[1764060873294,0.72559411,2884.6,2884.0,0.095]
[1764060873490,0.405504,2884.5,2884.0,0.095]
[1764060873685,0.405504,2884.3,2883.7,0.095]
[1764060873918,0.405504,2884.5,2884.0,0.095]
[1764060874098,3.4667616,2884.6,2884.0,0.095]
[1764060874402,0.405504,2884.4,2884.0,0.095]
[1764060874600,0.405504,2884.5,2884.0,0.095]
[1764060874920,0.4739,2885.3,2884.5,0.4717]
[1764060875089,7.40567266,2885.3,2884.6,0.095]
[1764060875284,0.7580148,2885.2,2884.6,0.095]
[1764060875521,3.46576132,2885.4,2884.9,0.095]
[1764060875688,3.69348378,2885.6,2884.9,0.095]
[1764060875885,3.60805639,2885.9,2885.0,0.4972]
[1764060876098,3.60805639,2885.9,2885.3,0.095]
[1764060876298,0.1429,2885.9,2885.2,3.46596236]
[1764060876500,3.60802749,2885.9,2885.5,0.095]
[1764060876909,0.86849411,2885.9,2885.5,0.095]
[1764060877110,3.60803896,2885.9,2885.3,0.095]
[1764060877927,4.1668068,2886.1,2885.5,0.095]
[1764060877928,4.41852661,2886.1,2885.5,0.095]
[1764060878328,0.89159411,2886.2,2885.9,0.095]
[1764060878631,3.46455094,2886.4,2885.9,0.095]
[1764060879121,0.72559411,2886.3,2885.9,0.095]
[1764060879321,0.405504,2886.2,2885.9,0.095]
[1764060879756,0.498204,2886.0,2885.4,0.095]
[1764060880032,0.405504,2885.8,2885.1,0.6938]
[1764060880197,0.405504,2885.6,2885.3,0.095]
[1764060880399,0.03242069,2885.5,2885.3,0.095]
[1764060880599,0.03242069,2885.5,2885.1,3.66265581]
[1764060880835,0.405504,2885.8,2885.4,0.4717]
[1764060881023,0.43792469,2885.8,2885.5,0.095]
[1764060881639,0.43792469,2885.8,2885.3,0.095]
[1764060882006,1.1635188,2885.8,2885.3,0.095]
[1764060882204,0.405504,2885.6,2884.9,0.095]
[1764060882739,0.405504,2885.4,2884.5,0.4972]
[1764060882942,0.405504,2885.5,2884.9,0.095]
[1764060884010,3.46572398,2885.4,2884.9,0.095]
[1764060884214,1.13109811,2885.3,2884.9,0.095]
[1764060884623,0.405504,2885.5,2884.9,0.095]
[1764060885025,0.879404,2885.5,2884.9,0.095]
[1764060885246,0.405504,2885.3,2884.4,4.05911836]
[1764060885415,0.405504,2885.3,2884.7,0.095]
[1764060886042,0.405504,2885.1,2884.6,0.095]
[1764060886229,3.87160164,2885.1,2884.6,0.095]
[1764060886432,0.405504,2885.1,2884.6,0.095]
[1764060886743,1.13109811,2884.9,2884.2,0.4972]
[1764060886919,1.13109811,2884.9,2884.5,0.095]
[1764060888136,0.632504,2885.2,2884.7,0.095]
[1764060888313,4.0977141,2885.2,2884.7,0.095]
[1764060888516,5.045088,2884.7,2883.9,0.001]
[1764060888746,0.96193682,2884.6,2883.9,0.001]
[1764060889058,0.2317,2884.6,2883.9,0.001]
[1764060889341,0.2317,2884.6,2884.0,0.095]
[1764060889542,0.7056,2884.6,2883.9,0.001]
[1764060890043,0.4576,2884.5,2883.9,0.001]
[1764060890243,0.405504,2884.2,2883.9,0.001]
[1764060891254,0.405504,2884.2,2884.0,0.095]
[1764060891725,0.405504,2884.0,2883.9,0.001]
[1764060892445,0.405504,2884.0,2883.9,0.096]
[1764060892955,3.87291038,2884.0,2883.9,0.001]
[1764060894639,3.98171038,2884.0,2883.9,0.001]
[1764060894843,3.87291038,2884.0,2883.9,0.001]
[1764060896059,5.16150449,2884.0,2883.9,0.001]
[1764060896628,4.70730449,2884.0,2883.9,0.001]
[1764060896936,4.59850449,2884.0,2883.9,0.001]
[1764060897858,4.74322518,2884.0,2883.9,0.001]
[1764060898045,4.71080449,2884.0,2883.9,0.001]
[1764060899059,4.74322518,2884.0,2883.9,0.001]
[1764060899251,4.71080449,2884.0,2883.9,0.001]
[1764060899855,5.19392518,2884.0,2883.9,0.001]
[1764060900270,4.93780449,2884.0,2883.9,0.001]
[1764060900467,5.38850449,2884.0,2883.9,0.001]
[1764060900631,6.43751995,2884.0,2883.9,0.001]
[1764060900833,0.72559411,2883.5,2882.3,0.1807]
[1764060901144,0.0045,2883.2,2882.3,0.7714]
[1764060901328,0.405504,2883.4,2882.3,0.7714]
[1764060901534,0.405504,2883.5,2882.6,0.095]
[1764060901733,0.405504,2883.5,2882.3,0.1807]
[1764060901734,1.13657005,2883.5,2882.3,0.2757]
[1764060901954,0.405504,2883.3,2882.3,0.6764]
[1764060902154,0.405504,2883.3,2882.0,7.93962526]
[1764060902155,0.405504,2883.3,2882.1,0.1807]
[1764060902328,0.405504,2883.3,2882.2,0.4957]
[1764060902527,1.13109811,2883.4,2882.2,0.4957]
[1764060902962,1.13109811,2883.5,2882.7,0.095]
[1764060903170,1.13109811,2883.5,2882.9,0.095]
[1764060903375,0.405504,2883.5,2882.9,0.095]
[1764060903561,0.72559411,2883.6,2883.0,0.095]
[1764060903930,0.51882069,2883.5,2882.7,0.095]
[1764060904131,0.405504,2883.4,2882.7,0.095]
[1764060904378,3.87392716,2883.2,2882.7,0.095]
[1764060904580,7.34235032,2883.2,2882.7,0.095]
[1764060904736,0.405504,2883.2,2882.7,0.5907]
[1764060905131,0.405504,2883.2,2882.7,0.095]
[1764060905380,0.405504,2883.2,2882.5,0.4957]
[1764060905670,0.405504,2883.2,2882.7,0.5907]
[1764060906162,0.405504,2883.3,2882.7,0.5907]
[1764060906481,0.405504,2883.2,2882.7,0.5907]
[1764060906854,0.405504,2883.2,2882.8,0.095]
[1764060907035,0.405504,2883.2,2883.1,0.7573]
[1764060907236,0.405504,2883.2,2882.7,0.4957]
[1764060907237,0.405504,2883.2,2882.8,0.095]
[1764060907436,0.405504,2883.0,2882.7,0.4957]
[1764060907741,0.405504,2883.2,2882.3,0.5907]
[1764060908153,0.405504,2883.2,2882.3,4.06012499]
[1764060908352,0.405504,2883.0,2882.3,0.4957]
[1764060908554,0.405504,2883.0,2882.3,0.5907]
[1764060908752,0.405504,2883.0,2882.3,4.06013863]
[1764060908953,0.405504,2882.8,2882.3,0.5907]
[1764060909159,0.405504,2882.8,2882.1,0.1807]
[1764060909335,0.891904,2882.8,2882.1,0.1807]
[1764060909533,0.405504,2882.8,2882.1,3.65038326]
[1764060909788,0.405504,2882.8,2882.3,0.095]
[1764060910161,0.72559411,2883.0,2882.4,0.4957]
[1764060910363,0.405504,2882.9,2882.3,0.095]
[1764060910536,0.405504,2882.7,2882.3,0.095]
[1764060910872,0.405504,2882.7,2882.1,0.6764]
[1764060911164,0.405504,2882.9,2882.1,3.65038779]
[1764060911364,0.405504,2882.7,2882.3,0.095]
[1764060911566,0.405504,2882.8,2882.3,0.095]
[1764060911767,1.13109811,2882.9,2882.4,0.4957]
[1764060912150,4.59890719,2883.0,2882.4,0.4957]
[1764060912542,4.59890719,2883.0,2882.3,0.095]
[1764060912872,4.59890719,2883.0,2882.0,1.0]
[1764060912873,0.4853,2882.4,2882.0,1.0]
[1764060913861,0.4864,2882.4,2882.0,1.0]
[1764060914063,0.0759,2882.1,2882.0,1.0]
[1764060914266,0.481404,2882.1,2882.0,1.0]
[1764060914443,0.405504,2882.1,2882.0,1.0]
[1764060914644,8.14897165,2883.1,2882.1,0.095]
[1764060914842,0.227,2883.0,2882.1,0.2757]
[1764060915045,0.0759,2882.2,2882.0,1.0]
[1764060915270,0.227,2882.5,2882.0,1.0]
[1764060915471,0.405504,2882.1,2882.0,1.0]
[1764060915670,0.405504,2882.4,2882.0,1.0]
[1764060916072,0.891904,2882.4,2882.0,1.0]
[1764060916377,0.0759,2882.1,2882.0,1.0]
[1764060916542,3.95109623,2882.1,2882.0,1.0]
[1764060917963,4.17809623,2882.1,2882.0,1.0]
[1764060918166,0.405504,2882.1,2882.0,1.0]
[1764060918372,3.87519623,2882.1,2882.0,1.0]
[1764060918678,3.95509623,2882.1,2882.0,1.0]
[1764060918858,3.95509623,2882.1,2882.0,1.001]
[1764060919772,4.43339623,2882.1,2882.0,1.001]
[1764060920154,3.87519623,2882.1,2882.0,1.001]
[1764060920569,3.95909623,2882.1,2882.0,1.001]
[1764060921392,5.15909034,2882.1,2882.0,1.001]
[1764060921590,4.68469034,2882.1,2882.0,1.001]
[1764060923360,1.21499811,2882.1,2882.0,1.001]
[1764060923561,4.68469034,2882.1,2882.0,1.001]
[1764060924192,1.13109811,2882.1,2882.0,1.001]
[1764060924969,4.60079034,2882.1,2882.0,1.001]
[1764060925692,1.13109811,2882.1,2882.0,1.9581]
[1764060925895,1.13109811,2882.1,2882.0,1.4633]
[1764060926111,1.13109811,2882.1,2882.0,1.001]
[1764060926464,1.13109811,2882.1,2882.0,1.4633]
[1764060926697,1.13109811,2882.1,2882.0,1.001]
[1764060926899,4.60079034,2882.1,2882.0,1.4633]
[1764060927192,0.405504,2882.1,2882.0,1.9581]
[1764060927391,0.72559411,2882.4,2882.0,2.0531]
[1764060927598,0.95159411,2882.7,2882.1,0.7867]
[1764060927781,0.95159411,2882.7,2882.3,0.4623]
[1764060928170,0.72559411,2882.7,2882.3,0.4623]
[1764060928586,0.405504,2882.6,2882.3,0.4623]
[1764060928787,1.13109811,2882.4,2882.3,0.4623]
[1764060928988,1.4571188,2882.4,2882.0,1.001]
[1764060929186,0.868904,2882.1,2882.0,1.001]
[1764060930397,8.582094,2882.1,2882.0,1.001]
[1764060930576,0.405504,2882.1,2882.0,1.001]
[1764060930972,0.405504,2882.1,2882.0,1.9581]
[1764060931716,0.405504,2882.1,2882.0,2.0531]
[1764060931923,0.72559411,2882.7,2882.0,5.52291263]
[1764060932076,0.72559411,2882.7,2882.1,0.7867]
[1764060932272,0.405504,2882.6,2882.2,0.4948]
[1764060932715,1.13109811,2882.7,2882.5,0.4623]
[1764060932913,4.60013232,2882.7,2882.5,0.4623]
[1764060933088,0.6906,2883.2,2882.6,0.4623]
[1764060933270,0.72559411,2883.0,2882.6,0.4623]
[1764060933809,3.46848877,2883.1,2882.9,0.4623]
[1764060934101,0.72559411,2883.0,2882.9,0.4623]
[1764060934400,1.13109811,2883.0,2882.9,0.4623]
[1764060935000,4.59970719,2883.0,2882.9,0.4623]
[1764060935196,4.59970719,2883.0,2882.9,0.24914]
[1764060935369,0.405504,2883.0,2882.9,0.24914]
[1764060935784,4.59970719,2883.0,2882.9,0.24914]
[1764060936187,1.13029811,2883.0,2882.9,0.24914]
[1764060936400,4.59890719,2883.0,2882.9,0.24914]
[1764060937207,4.60090719,2883.0,2882.9,0.24914]
[1764060937687,1.13229811,2883.0,2882.9,0.74394]
[1764060938777,0.406704,2883.0,2882.9,0.74394]
[1764060939690,0.406704,2883.0,2882.9,0.83894]
[1764060940609,0.002,2883.0,2882.9,0.83894]
[1764060941181,0.002,2883.0,2882.9,4.5336694]
[1764060942087,3.74024244,2885.1,2882.9,4.5336694]
[1764060942088,0.91899507,2884.7,2882.9,14.8448576]
[1764060942288,1.04226922,2884.2,2883.7,0.095]
[1764060942511,10.92735296,2884.6,2883.8,0.226]
[1764060942512,0.405504,2884.4,2883.8,0.226]
[1764060942879,0.405504,2884.4,2883.5,0.8158]
[1764060943076,0.405504,2884.2,2883.8,0.095]
[1764060943409,0.72559411,2884.2,2883.7,0.095]
[1764060943576,0.405504,2884.1,2883.7,0.095]
[1764060943777,0.405504,2884.2,2883.8,0.4948]
[1764060943980,0.03242069,2884.1,2883.8,0.4948]
[1764060944211,0.03242069,2884.1,2883.9,0.095]
[1764060944399,3.46704573,2884.3,2884.0,0.4623]
[1764060944593,0.405504,2884.2,2884.0,0.4623]
[1764060944995,0.405504,2884.2,2884.1,0.4623]
[1764060945291,0.697404,2884.1,2883.4,0.226]
[1764060945609,0.697404,2884.1,2883.6,0.095]
[1764060946089,0.697404,2884.1,2883.6,0.5898]
[1764060946416,0.72982469,2884.1,2883.6,0.5898]
[1764060946716,0.72982469,2884.1,2883.6,0.095]
[1764060947115,0.405504,2883.7,2883.4,0.226]
[1764060947416,0.03242069,2883.6,2883.3,0.7208]
[1764060947587,0.405504,2883.7,2883.3,0.8158]
[1764060948095,0.405504,2883.7,2883.3,0.5898]
[1764060948292,0.405504,2883.7,2883.3,0.8158]
[1764060948499,0.03242069,2883.6,2883.3,0.8158]
[1764060948698,0.405504,2883.7,2883.3,0.8158]
[1764060949122,0.405504,2883.7,2882.8,3.6801294]
[1764060949123,0.405504,2883.3,2882.8,3.6801294]
[1764060949301,0.405504,2883.3,2883.1,0.095]
[1764060949500,0.405504,2883.3,2883.0,0.095]
[1764060950615,0.405504,2883.5,2883.2,0.472]
[1764060950791,3.87339136,2883.6,2883.2,0.472]
[1764060950987,0.405504,2883.6,2883.5,0.472]
[1764060951496,0.405504,2883.6,2883.5,0.567]
[1764060951702,3.87339136,2883.6,2883.3,0.095]
[1764060951910,7.66889941,2883.6,2883.1,0.225]
[1764060952112,4.16859136,2883.6,2883.0,0.095]
[1764060952321,0.405504,2883.5,2883.0,0.095]
[1764060953113,0.405504,2883.5,2883.0,0.5514]
[1764060953310,0.405504,2883.4,2883.0,0.4564]
[1764060953514,0.405504,2883.4,2883.3,0.095]
[1764060953703,0.405504,2883.4,2883.3,0.567]
[1764060954094,0.405504,2883.4,2883.3,0.472]
[1764060954307,0.405504,2883.4,2883.3,0.567]
[1764060954918,0.405504,2883.5,2883.3,0.567]
[1764060955619,3.87358602,2883.5,2883.3,0.567]
[1764060955823,0.32762069,2883.4,2883.0,0.001]
[1764060956121,0.405504,2883.3,2883.0,0.001]
[1764060956325,0.405504,2883.4,2883.0,0.001]
[1764060956619,0.405504,2883.4,2883.0,0.5524]
[1764060956923,0.405504,2883.4,2883.0,0.096]
[1764060957500,3.46824818,2883.3,2883.0,0.096]
[1764060957703,0.705804,2883.1,2883.0,0.001]
[1764060958324,1.187304,2883.1,2883.0,0.001]
[1764060958628,1.412304,2883.1,2883.0,0.001]
[1764060959596,5.60638688,2883.1,2883.0,0.001]
[1764060960001,5.63880757,2883.1,2883.0,0.001]
[1764060960212,5.63800757,2883.1,2883.0,0.001]
[1764060961515,5.60558688,2883.1,2883.0,0.001]
[1764060962805,5.60558688,2883.1,2883.0,0.001]
[1764060963238,5.63800757,2883.1,2883.0,0.001]
[1764060963438,5.60558688,2883.1,2883.0,0.001]
[1764060964214,5.63800757,2883.1,2883.0,0.001]
[1764060964438,15.83616363,2883.1,2883.0,0.001]
[1764060964736,16.80374294,2883.1,2883.0,0.001]
[1764060965037,16.88675748,2883.1,2883.0,0.001]
[1764060965538,18.69814148,2883.1,2883.0,0.001]
[1764060966235,18.69814148,2883.1,2882.0,1.0]
[1764060966236,0.405504,2882.8,2882.0,1.0]
[1764060966536,0.405504,2882.6,2882.0,1.0]
[1764060967032,0.225,2882.7,2882.0,1.0]
[1764060967033,0.405504,2882.4,2882.0,1.0]
[1764060967335,0.405504,2882.2,2882.0,1.0]
[1764060967829,0.704204,2882.1,2882.0,1.0]
[1764060968235,0.405504,2882.1,2882.0,1.0]
[1764060968539,0.405504,2882.1,2882.0,1.4969]
[1764060969128,3.87519623,2882.1,2882.0,1.4969]
[1764060969527,0.405504,2882.1,2882.0,1.9496]
[1764060969712,3.87519623,2882.1,2882.0,1.4969]
[1764060970214,0.405504,2882.1,2882.0,1.4969]
[1764060970417,0.405504,2882.1,2882.0,1.9496]
[1764060970615,0.405504,2882.1,2882.0,2.0446]
[1764060971135,3.87519623,2882.1,2882.0,2.0446]
[1764060971443,3.87519623,2882.1,2882.0,1.4969]